[Event "*** Titled Tuesday Blitz"]
[Site "Chess.com"]
[Date "2021.02.02"]
[Round "10"]
[White "VALPARAISO37"]
[Black "andriipalchuk"]
[Result "1-0"]
[WhiteElo "2484"]
[BlackElo "2580"]
[TimeControl "180+1"]
[EndTime "11:57:33 PST"]
[Termination "VALPARAISO37 won by resignation"]

1. d4 {[%clk 0:03:00.9]} 1... Nf6 {[%clk 0:02:59]} 2. c4 {[%clk 0:03:01.1]} 2...
e6 {[%clk 0:02:59.2]} 3. Nc3 {[%clk 0:03:01.3]} 3... Bb4 {[%clk 0:02:58.5]} 4.
a3 {[%clk 0:03:02]} 4... Bxc3+ {[%clk 0:02:57.6]} 5. bxc3 {[%clk 0:03:01.7]}
5... Nc6 {[%clk 0:02:58.3]} 6. e3 {[%clk 0:03:01.3]} 6... d6 {[%clk 0:02:49]} 7.
Bd3 {[%clk 0:02:52.6]} 7... b6 {[%clk 0:02:45.9]} 8. e4 {[%clk 0:02:50.5]} 8...
Na5 {[%clk 0:02:34.5]} 9. Nf3 {[%clk 0:02:44.7]} 9... Ba6 {[%clk 0:02:34.1]} 10.
Bg5 {[%clk 0:02:43.2]} 10... h6 {[%clk 0:02:32.5]} 11. Be3 {[%clk 0:02:42.2]}
11... O-O {[%clk 0:02:21.8]} 12. Qe2 {[%clk 0:02:39.3]} 12... d5 {[%clk
0:02:16.7]} 13. cxd5 {[%clk 0:02:37.4]} 13... Bxd3 {[%clk 0:02:15.8]} 14. Qxd3
{[%clk 0:02:36.1]} 14... exd5 {[%clk 0:02:16.5]} 15. e5 {[%clk 0:02:36.3]} 15...
Ne4 {[%clk 0:02:06.1]} 16. O-O {[%clk 0:02:31.7]} 16... f5 {[%clk 0:02:04.1]}
17. a4 {[%clk 0:02:27.4]} 17... Nc4 {[%clk 0:01:58.9]} 18. Bc1 {[%clk
0:02:24.7]} 18... Qd7 {[%clk 0:01:31.8]} 19. Ne1 {[%clk 0:02:19.5]} 19... f4
{[%clk 0:01:30.4]} 20. f3 {[%clk 0:02:19.2]} 20... Ng5 {[%clk 0:01:30.4]} 21.
Qg6 {[%clk 0:01:55.8]} 21... Qe6 {[%clk 0:01:13.3]} 22. Qc2 {[%clk 0:01:46.6]}
22... Qf5 {[%clk 0:01:07.4]} 23. Qxf5 {[%clk 0:01:41.8]} 23... Rxf5 {[%clk
0:01:08.3]} 24. Nd3 {[%clk 0:01:42.2]} 24... Ne6 {[%clk 0:01:08.3]} 25. g3
{[%clk 0:01:35.9]} 25... g5 {[%clk 0:01:01.7]} 26. Kg2 {[%clk 0:01:34.6]} 26...
Rb8 {[%clk 0:00:51.6]} 27. Rb1 {[%clk 0:01:29.1]} 27... Rff8 {[%clk 0:00:46]}
28. Nb4 {[%clk 0:01:27.3]} 28... Rbd8 {[%clk 0:00:45.9]} 29. Nc6 {[%clk
0:01:25.4]} 29... Rd7 {[%clk 0:00:46.1]} 30. Nb4 {[%clk 0:01:14.4]} 30... c5
{[%clk 0:00:39.9]} 31. Nc2 {[%clk 0:01:14.1]} 31... fxg3 {[%clk 0:00:32.1]} 32.
hxg3 {[%clk 0:01:13.4]} 32... Rc8 {[%clk 0:00:32.8]} 33. Rf2 {[%clk 0:01:10.2]}
33... Ng7 {[%clk 0:00:29.7]} 34. g4 {[%clk 0:01:08.1]} 34... Ne6 {[%clk
0:00:29.2]} 35. Rb5 {[%clk 0:01:05.5]} 35... cxd4 {[%clk 0:00:27.2]} 36. cxd4
{[%clk 0:01:04.7]} 36... Kf7 {[%clk 0:00:26.4]} 37. Kg3 {[%clk 0:00:55.5]} 37...
Kg6 {[%clk 0:00:26.2]} 38. Rh2 {[%clk 0:00:49.6]} 38... Na5 {[%clk 0:00:22.6]}
39. Be3 {[%clk 0:00:40.9]} 39... Rc4 {[%clk 0:00:09.5]} 40. Rb4 {[%clk
0:00:36.6]} 40... Rdc7 {[%clk 0:00:07.4]} 41. Rxc4 {[%clk 0:00:35.5]} 41... Rxc4
{[%clk 0:00:08.3]} 42. Na3 {[%clk 0:00:20.2]} 42... Rc3 {[%clk 0:00:08.8]} 43.
Nc2 {[%clk 0:00:18.7]} 43... Nc4 {[%clk 0:00:09.3]} 44. Bc1 {[%clk 0:00:17.3]}
44... a5 {[%clk 0:00:07.1]} 45. Re2 {[%clk 0:00:16.1]} 45... Rd3 {[%clk
0:00:07.3]} 46. Kf2 {[%clk 0:00:13.1]} 46... Kf7 {[%clk 0:00:07.6]} 47. Ne3
{[%clk 0:00:11.7]} 47... Rxd4 {[%clk 0:00:06.6]} 48. Nf5 {[%clk 0:00:10.9]}
48... Rd3 {[%clk 0:00:07.1]} 49. Nxh6+ {[%clk 0:00:10.6]} 49... Kg6 {[%clk
0:00:07.7]} 50. Nf5 {[%clk 0:00:10.4]} 50... Rb3 {[%clk 0:00:07.3]} 51. Ne7+
{[%clk 0:00:10.6]} 51... Kf7 {[%clk 0:00:07.2]} 52. Nxd5 {[%clk 0:00:11.3]}
52... Nd4 {[%clk 0:00:07.5]} 53. Re1 {[%clk 0:00:09.1]} 53... Rxf3+ {[%clk
0:00:06.8]} 54. Kg2 {[%clk 0:00:08.9]} 54... Rd3 {[%clk 0:00:06.7]} 55. e6+
{[%clk 0:00:08.8]} 55... Nxe6 {[%clk 0:00:07]} 56. Nc7 {[%clk 0:00:08.7]} 56...
Rc3 {[%clk 0:00:06.2]} 57. Nxe6 {[%clk 0:00:08.3]} 57... Rc2+ {[%clk 0:00:06.8]}
58. Kg3 {[%clk 0:00:08.1]} 58... Nd6 {[%clk 0:00:07]} 59. Nxg5+ {[%clk
0:00:07.7]} 59... Kg8 {[%clk 0:00:07.6]} 60. Re6 {[%clk 0:00:07]} 60... Nc4
{[%clk 0:00:07.9]} 61. Bf4 {[%clk 0:00:06.1]} 61... Rc3+ {[%clk 0:00:07.8]} 62.
Kh4 {[%clk 0:00:06.5]} 62... Ra3 {[%clk 0:00:08.2]} 63. Kh5 {[%clk 0:00:06.8]}
63... Rxa4 {[%clk 0:00:09.1]} 64. Kg6 {[%clk 0:00:06.7]} 64... Kf8 {[%clk
0:00:07.4]} 65. Nh7+ {[%clk 0:00:05.7]} 1-0

[Event "*** Titled Tuesday Blitz"]
[Site "Chess.com"]
[Date "2021.02.02"]
[Round "10"]
[White "Meri-Arabidze"]
[Black "Gusarov91"]
[Result "1-0"]
[WhiteElo "2617"]
[BlackElo "1288"]
[TimeControl "180+1"]
[EndTime "11:57:38 PST"]
[Termination "Meri-Arabidze won by checkmate"]

1. Nf3 {[%clk 0:03:00.9]} 1... d5 {[%clk 0:02:33.2]} 2. d4 {[%clk 0:03:00.6]}
2... c6 {[%clk 0:02:33.6]} 3. c4 {[%clk 0:03:01.3]} 3... Nf6 {[%clk 0:02:34.2]}
4. Nc3 {[%clk 0:03:01.9]} 4... a6 {[%clk 0:02:32.9]} 5. e3 {[%clk 0:03:01.7]}
5... b5 {[%clk 0:02:32.1]} 6. b3 {[%clk 0:03:01.4]} 6... Bg4 {[%clk 0:02:31.7]}
7. Be2 {[%clk 0:03:00.4]} 7... e6 {[%clk 0:02:30.8]} 8. O-O {[%clk 0:03:00.4]}
8... Bb4 {[%clk 0:02:30.9]} 9. Bd2 {[%clk 0:03:00.1]} 9... Be7 {[%clk
0:02:27.8]} 10. h3 {[%clk 0:02:59.9]} 10... Bxf3 {[%clk 0:02:27.2]} 11. Bxf3
{[%clk 0:02:59.6]} 11... O-O {[%clk 0:02:27.3]} 12. Qc2 {[%clk 0:02:57.9]} 12...
Nbd7 {[%clk 0:02:26.4]} 13. Rad1 {[%clk 0:02:56.1]} 13... bxc4 {[%clk
0:02:09.3]} 14. bxc4 {[%clk 0:02:55.8]} 14... Nb6 {[%clk 0:02:09.9]} 15. c5
{[%clk 0:02:42]} 15... Nc4 {[%clk 0:02:09.9]} 16. Na4 {[%clk 0:02:39.9]} 16...
Nxd2 {[%clk 0:02:06.4]} 17. Qxd2 {[%clk 0:02:36.7]} 17... Nd7 {[%clk 0:02:05.7]}
18. e4 {[%clk 0:02:33.4]} 18... Rb8 {[%clk 0:02:04]} 19. Rfe1 {[%clk 0:02:29.3]}
19... Bg5 {[%clk 0:02:02.9]} 20. Qc3 {[%clk 0:02:20.5]} 20... Qc7 {[%clk
0:02:01.7]} 21. g3 {[%clk 0:02:09.9]} 21... Rb5 {[%clk 0:01:57.3]} 22. Be2
{[%clk 0:02:04.2]} 22... Ra5 {[%clk 0:01:55.9]} 23. Nb6 {[%clk 0:01:19.4]} 23...
Rxa2 {[%clk 0:01:53.9]} 24. f4 {[%clk 0:01:19.7]} 24... Bf6 {[%clk 0:01:45.9]}
25. e5 {[%clk 0:01:18.9]} 25... Bd8 {[%clk 0:01:45.9]} 26. Qb3 {[%clk
0:01:16.7]} 26... Ra5 {[%clk 0:01:35.9]} 27. Qb4 {[%clk 0:01:13.3]} 27... Ra2
{[%clk 0:01:28.4]} 28. Qb3 {[%clk 0:01:03.9]} 28... Ra5 {[%clk 0:00:52.9]} 29.
Rb1 {[%clk 0:01:03.7]} 29... Nxb6 {[%clk 0:00:45.2]} 30. cxb6 {[%clk 0:01:04.6]}
30... Qb7 {[%clk 0:00:45.5]} 31. Rec1 {[%clk 0:01:05.2]} 31... Be7 {[%clk
0:00:38.8]} 32. Qc3 {[%clk 0:00:54.8]} 32... Ra2 {[%clk 0:00:38.9]} 33. Bf1
{[%clk 0:00:47.9]} 33... Rc8 {[%clk 0:00:37.1]} 34. Rc2 {[%clk 0:00:23.9]} 34...
Ra3 {[%clk 0:00:37]} 35. Rb3 {[%clk 0:00:21.3]} 35... Ra4 {[%clk 0:00:37.4]} 36.
Qd3 {[%clk 0:00:14.7]} 36... h5 {[%clk 0:00:36.6]} 37. Kg2 {[%clk 0:00:14]}
37... g6 {[%clk 0:00:35.9]} 38. g4 {[%clk 0:00:13.3]} 38... hxg4 {[%clk
0:00:35.5]} 39. hxg4 {[%clk 0:00:14.2]} 39... c5 {[%clk 0:00:35.7]} 40. dxc5
{[%clk 0:00:14.5]} 40... Rxc5 {[%clk 0:00:33.1]} 41. Rxc5 {[%clk 0:00:13.7]}
41... Bxc5 {[%clk 0:00:33.3]} 42. Qc2 {[%clk 0:00:13.6]} 42... d4+ {[%clk
0:00:32.4]} 43. Kg3 {[%clk 0:00:13.5]} 43... Bxb6 {[%clk 0:00:29.9]} 44. Qb2
{[%clk 0:00:12.3]} 44... Qh1 {[%clk 0:00:25.7]} 45. Bg2 {[%clk 0:00:05.8]} 45...
Qe1+ {[%clk 0:00:25.5]} 46. Kh3 {[%clk 0:00:05.2]} 46... Ra1 {[%clk 0:00:15.4]}
47. Rxb6 {[%clk 0:00:04.3]} 47... Qe3+ {[%clk 0:00:15.7]} 48. Kh4 {[%clk
0:00:04]} 48... Qf2+ {[%clk 0:00:13.5]} 49. Qxf2 {[%clk 0:00:03.2]} 49... Ra4
{[%clk 0:00:11.1]} 50. Rb8+ {[%clk 0:00:04.1]} 50... Kh7 {[%clk 0:00:11]} 51. f5
{[%clk 0:00:04.7]} 51... Kh6 {[%clk 0:00:10.9]} 52. fxg6 {[%clk 0:00:04.6]}
52... f5 {[%clk 0:00:09.5]} 53. gxf5 {[%clk 0:00:04.5]} 53... d3+ {[%clk
0:00:09.9]} 54. Kh3 {[%clk 0:00:05.2]} 54... exf5 {[%clk 0:00:08.9]} 55. Qe3+
{[%clk 0:00:05.4]} 55... f4 {[%clk 0:00:08.9]} 56. Qxd3 {[%clk 0:00:05.4]} 56...
Rb4 {[%clk 0:00:07.5]} 57. Rxb4 {[%clk 0:00:04.4]} 57... f3 {[%clk 0:00:07.7]}
58. Rh4+ {[%clk 0:00:04.1]} 58... Kg5 {[%clk 0:00:07.7]} 59. Rg4+ {[%clk
0:00:04]} 59... Kh6 {[%clk 0:00:08.2]} 60. Bxf3 {[%clk 0:00:04.4]} 60... a5
{[%clk 0:00:08.3]} 61. g7 {[%clk 0:00:04.2]} 61... a4 {[%clk 0:00:08.5]} 62.
Qg6# {[%clk 0:00:04.4]} 1-0

[Event "*** Titled Tuesday Blitz"]
[Site "Chess.com"]
[Date "2021.02.02"]
[Round "10"]
[White "Sanyura"]
[Black "LucaBrasi1968"]
[Result "1/2-1/2"]
[WhiteElo "2687"]
[BlackElo "2527"]
[TimeControl "180+1"]
[EndTime "11:57:40 PST"]
[Termination "Game drawn - insufficient material"]

1. e4 {[%clk 0:03:00.9]} 1... c6 {[%clk 0:02:53.1]} 2. Nc3 {[%clk 0:03:00.3]}
2... d5 {[%clk 0:02:52.9]} 3. Nf3 {[%clk 0:03:01.2]} 3... dxe4 {[%clk
0:02:52.6]} 4. Nxe4 {[%clk 0:03:02.1]} 4... Nf6 {[%clk 0:02:53]} 5. Qe2 {[%clk
0:03:02.5]} 5... Bf5 {[%clk 0:02:52]} 6. Nxf6+ {[%clk 0:03:01.4]} 6... gxf6
{[%clk 0:02:51.6]} 7. d4 {[%clk 0:03:01.8]} 7... Nd7 {[%clk 0:02:50.6]} 8. c3
{[%clk 0:02:56.5]} 8... e6 {[%clk 0:02:49.7]} 9. Nh4 {[%clk 0:02:55.2]} 9... Bg6
{[%clk 0:02:48.3]} 10. f4 {[%clk 0:02:55.1]} 10... f5 {[%clk 0:02:47.8]} 11. Nf3
{[%clk 0:02:54.4]} 11... Bh5 {[%clk 0:02:47.6]} 12. Be3 {[%clk 0:02:50.5]} 12...
Nf6 {[%clk 0:02:47]} 13. g3 {[%clk 0:02:47.7]} 13... Be7 {[%clk 0:02:32.2]} 14.
Bg2 {[%clk 0:02:47.7]} 14... Qd5 {[%clk 0:02:25.9]} 15. Ne5 {[%clk 0:02:34.5]}
15... Bxe2 {[%clk 0:02:09.2]} 16. Bxd5 {[%clk 0:02:33.8]} 16... cxd5 {[%clk
0:02:08]} 17. Kxe2 {[%clk 0:02:33.8]} 17... Ne4 {[%clk 0:02:07.6]} 18. Rhg1
{[%clk 0:02:26.4]} 18... f6 {[%clk 0:02:06.5]} 19. Nd3 {[%clk 0:02:25.3]} 19...
Rg8 {[%clk 0:02:04.1]} 20. Rac1 {[%clk 0:02:20.2]} 20... Rc8 {[%clk 0:02:03.3]}
21. Nf2 {[%clk 0:01:59.6]} 21... b5 {[%clk 0:01:45.8]} 22. Kf3 {[%clk
0:01:56.9]} 22... h5 {[%clk 0:01:41.3]} 23. h3 {[%clk 0:01:56.5]} 23... Kd7
{[%clk 0:01:39]} 24. g4 {[%clk 0:01:51.1]} 24... Nxf2 {[%clk 0:01:33.3]} 25.
Bxf2 {[%clk 0:01:50.4]} 25... hxg4+ {[%clk 0:01:33.2]} 26. hxg4 {[%clk
0:01:51.3]} 26... fxg4+ {[%clk 0:01:32.1]} 27. Rxg4 {[%clk 0:01:52.2]} 27...
Rxg4 {[%clk 0:01:31.6]} 28. Kxg4 {[%clk 0:01:52.4]} 28... f5+ {[%clk 0:01:27.8]}
29. Kf3 {[%clk 0:01:51.4]} 29... b4 {[%clk 0:01:27.9]} 30. Be1 {[%clk
0:01:47.7]} 30... bxc3 {[%clk 0:01:27.2]} 31. Bxc3 {[%clk 0:01:48.6]} 31... Rh8
{[%clk 0:01:08.5]} 32. Rg1 {[%clk 0:01:48]} 32... Rh3+ {[%clk 0:01:04.9]} 33.
Ke2 {[%clk 0:01:40.7]} 33... Bd6 {[%clk 0:01:03.6]} 34. Rg7+ {[%clk 0:01:40.1]}
34... Kc6 {[%clk 0:01:00.1]} 35. Bd2 {[%clk 0:01:35.8]} 35... Rh2+ {[%clk
0:00:54.3]} 36. Kd3 {[%clk 0:01:34.3]} 36... Rh3+ {[%clk 0:00:53.1]} 37. Kc2
{[%clk 0:01:33.5]} 37... Rh2 {[%clk 0:00:53]} 38. Kd1 {[%clk 0:01:19.2]} 38...
Rh1+ {[%clk 0:00:52.7]} 39. Kc2 {[%clk 0:01:07.5]} 39... Rh2 {[%clk 0:00:53]}
40. Kd3 {[%clk 0:00:30.4]} 40... Rh3+ {[%clk 0:00:52.9]} 41. Ke2 {[%clk
0:00:30.6]} 41... Rh2+ {[%clk 0:00:53]} 42. Ke1 {[%clk 0:00:29]} 42... Rh1+
{[%clk 0:00:51.2]} 43. Kf2 {[%clk 0:00:29.1]} 43... Rh2+ {[%clk 0:00:51.5]} 44.
Rg2 {[%clk 0:00:29]} 44... Rxg2+ {[%clk 0:00:51.1]} 45. Kxg2 {[%clk 0:00:29.9]}
45... a6 {[%clk 0:00:43.6]} 46. Kh3 {[%clk 0:00:29.5]} 46... Kd7 {[%clk
0:00:42.1]} 47. Kh4 {[%clk 0:00:29.8]} 47... Ke7 {[%clk 0:00:28.2]} 48. Kh5
{[%clk 0:00:28.5]} 48... Kf7 {[%clk 0:00:28.5]} 49. b4 {[%clk 0:00:26.1]} 49...
Bc7 {[%clk 0:00:26.5]} 50. a4 {[%clk 0:00:19.1]} 50... Bb6 {[%clk 0:00:26.5]}
51. Bc3 {[%clk 0:00:16]} 51... Ba7 {[%clk 0:00:25.5]} 52. b5 {[%clk 0:00:15.8]}
52... axb5 {[%clk 0:00:25.4]} 53. axb5 {[%clk 0:00:16.7]} 53... Bb6 {[%clk
0:00:25.9]} 54. Kh6 {[%clk 0:00:14.9]} 54... Kf6 {[%clk 0:00:25.1]} 55. Kh7
{[%clk 0:00:12.7]} 55... Kf7 {[%clk 0:00:25.4]} 56. Kh8 {[%clk 0:00:10.5]} 56...
Kf8 {[%clk 0:00:23.3]} 57. Bb4+ {[%clk 0:00:08.4]} 57... Kf7 {[%clk 0:00:23.7]}
58. Bc5 {[%clk 0:00:08.9]} 58... Bc7 {[%clk 0:00:24.2]} 59. Ba7 {[%clk
0:00:02.5]} 59... Bxf4 {[%clk 0:00:23.8]} 60. b6 {[%clk 0:00:02.8]} 60... Kg6
{[%clk 0:00:17.1]} 61. b7 {[%clk 0:00:02.7]} 61... Kg5 {[%clk 0:00:15.6]} 62.
b8=Q {[%clk 0:00:02.8]} 62... Bxb8 {[%clk 0:00:15.8]} 63. Bxb8 {[%clk
0:00:03.7]} 63... f4 {[%clk 0:00:16.5]} 64. Kg7 {[%clk 0:00:04]} 64... Kf5
{[%clk 0:00:14.9]} 65. Kf7 {[%clk 0:00:03.8]} 65... f3 {[%clk 0:00:15.1]} 66.
Bg3 {[%clk 0:00:02.8]} 66... f2 {[%clk 0:00:13.7]} 67. Bxf2 {[%clk 0:00:03.1]}
67... e5 {[%clk 0:00:14.1]} 68. dxe5 {[%clk 0:00:02.5]} 68... Kxe5 {[%clk
0:00:14.5]} 69. Ke7 {[%clk 0:00:03.1]} 69... Ke4 {[%clk 0:00:14.7]} 70. Bc5
{[%clk 0:00:03.2]} 70... d4 {[%clk 0:00:15.6]} 71. Bxd4 {[%clk 0:00:03.6]}
1/2-1/2

[Event "*** Titled Tuesday Blitz"]
[Site "Chess.com"]
[Date "2021.02.02"]
[Round "10"]
[White "Chesswizard_2007"]
[Black "SkippingLaptop"]
[Result "1-0"]
[WhiteElo "2684"]
[BlackElo "2060"]
[TimeControl "180+1"]
[EndTime "11:57:42 PST"]
[Termination "Chesswizard_2007 won on time"]

1. e4 {[%clk 0:03:00.9]} 1... c5 {[%clk 0:02:59]} 2. Nc3 {[%clk 0:02:59.5]} 2...
Nc6 {[%clk 0:02:57.9]} 3. Nge2 {[%clk 0:02:54.2]} 3... g6 {[%clk 0:02:56.9]} 4.
d3 {[%clk 0:02:47.2]} 4... Bg7 {[%clk 0:02:55.7]} 5. Be3 {[%clk 0:02:47.8]} 5...
Nd4 {[%clk 0:02:54.1]} 6. Qd2 {[%clk 0:02:44.3]} 6... d6 {[%clk 0:02:51.2]} 7.
f4 {[%clk 0:02:26.3]} 7... e6 {[%clk 0:02:38]} 8. Bf2 {[%clk 0:02:18.7]} 8...
Ne7 {[%clk 0:02:35.2]} 9. Nxd4 {[%clk 0:02:17.8]} 9... cxd4 {[%clk 0:02:34.4]}
10. Ne2 {[%clk 0:02:16.1]} 10... Nc6 {[%clk 0:02:33.3]} 11. g3 {[%clk
0:02:15.9]} 11... Qb6 {[%clk 0:02:29]} 12. b3 {[%clk 0:02:12.2]} 12... a5 {[%clk
0:02:26.8]} 13. a4 {[%clk 0:02:10.8]} 13... Qc5 {[%clk 0:02:22.4]} 14. Bg2
{[%clk 0:02:08.9]} 14... Nb4 {[%clk 0:02:21.3]} 15. Rc1 {[%clk 0:02:05.3]} 15...
Na2 {[%clk 0:02:20.6]} 16. Rb1 {[%clk 0:01:59.5]} 16... Nb4 {[%clk 0:02:16.1]}
17. Rb2 {[%clk 0:01:56.2]} 17... O-O {[%clk 0:02:09.1]} 18. O-O {[%clk
0:01:55.1]} 18... Bd7 {[%clk 0:02:03.2]} 19. Rc1 {[%clk 0:01:53.2]} 19... Rfc8
{[%clk 0:01:59.9]} 20. Kh1 {[%clk 0:01:50.7]} 20... e5 {[%clk 0:01:50.3]} 21.
Qe1 {[%clk 0:01:48.2]} 21... Bg4 {[%clk 0:01:45.9]} 22. Qd2 {[%clk 0:01:25.6]}
22... Bxe2 {[%clk 0:01:37.4]} 23. Qxe2 {[%clk 0:01:26.5]} 23... Qc3 {[%clk
0:01:37.5]} 24. Rbb1 {[%clk 0:01:21.2]} 24... Na2 {[%clk 0:01:31.7]} 25. Rd1
{[%clk 0:01:10.8]} 25... Qxc2 {[%clk 0:01:30.9]} 26. Qf1 {[%clk 0:01:11.5]}
26... Qc5 {[%clk 0:01:18.1]} 27. Rd2 {[%clk 0:01:07.5]} 27... Nc3 {[%clk
0:01:14.9]} 28. Rbb2 {[%clk 0:01:05.2]} 28... Qb4 {[%clk 0:01:13.5]} 29. f5
{[%clk 0:01:03.3]} 29... Bh6 {[%clk 0:01:11.2]} 30. Rdc2 {[%clk 0:01:01.3]}
30... b5 {[%clk 0:01:05.9]} 31. axb5 {[%clk 0:01:00.4]} 31... Nxb5 {[%clk
0:01:02.5]} 32. Be1 {[%clk 0:01:00]} 32... Nc3 {[%clk 0:00:59]} 33. fxg6 {[%clk
0:00:58.8]} 33... hxg6 {[%clk 0:00:58]} 34. Rf2 {[%clk 0:00:58.5]} 34... Qb7
{[%clk 0:00:55.8]} 35. Bh3 {[%clk 0:00:57.6]} 35... Qe7 {[%clk 0:00:55.1]} 36.
Rf3 {[%clk 0:00:56.9]} 36... Rcb8 {[%clk 0:00:52.4]} 37. Rbf2 {[%clk 0:00:52.9]}
37... Ra7 {[%clk 0:00:50.7]} 38. Rxf7 {[%clk 0:00:37.6]} 38... Qxf7 {[%clk
0:00:50]} 39. Rxf7 {[%clk 0:00:38.5]} 39... Rxf7 {[%clk 0:00:48.8]} 40. Be6
{[%clk 0:00:38.9]} 40... Rf8 {[%clk 0:00:46.7]} 41. Qf6 {[%clk 0:00:38.9]} 41...
Bg7 {[%clk 0:00:37.2]} 42. Qxg6 {[%clk 0:00:37.7]} 42... Nd1 {[%clk 0:00:21.4]}
43. Bxa5 {[%clk 0:00:29.2]} 43... Ne3 {[%clk 0:00:19.8]} 44. Bd8 {[%clk
0:00:24.5]} 44... Rxd8 {[%clk 0:00:12.2]} 45. Qxf7+ {[%clk 0:00:23.6]} 45... Kh7
{[%clk 0:00:10.3]} 46. Qh5+ {[%clk 0:00:23.9]} 46... Bh6 {[%clk 0:00:10.1]} 47.
Bf5+ {[%clk 0:00:24.8]} 47... Nxf5 {[%clk 0:00:09.6]} 48. Qxf5+ {[%clk
0:00:25.7]} 48... Kg7 {[%clk 0:00:08.7]} 49. Qe6 {[%clk 0:00:25.4]} 49... Rf8
{[%clk 0:00:06.4]} 50. Qxd6 {[%clk 0:00:24.5]} 50... Be3 {[%clk 0:00:05.4]} 51.
Qxe5+ {[%clk 0:00:24.2]} 51... Kg6 {[%clk 0:00:04.7]} 52. Qe6+ {[%clk
0:00:24.5]} 52... Rf6 {[%clk 0:00:04.3]} 53. Qg4+ {[%clk 0:00:25.1]} 53... Kf7
{[%clk 0:00:04.3]} 54. Kg2 {[%clk 0:00:26]} 54... Rf2+ {[%clk 0:00:03.7]} 55.
Kh3 {[%clk 0:00:26.2]} 55... Rb2 {[%clk 0:00:03.9]} 56. Qd7+ {[%clk 0:00:26.4]}
56... Kf6 {[%clk 0:00:03.3]} 57. Kg4 {[%clk 0:00:27.3]} 57... Rxh2 {[%clk
0:00:01.8]} 58. Qd6+ {[%clk 0:00:14.9]} 58... Kf7 {[%clk 0:00:02.6]} 59. b4
{[%clk 0:00:13.3]} 59... Rd2 {[%clk 0:00:03.5]} 60. Qd7+ {[%clk 0:00:11.5]}
60... Kf6 {[%clk 0:00:02.8]} 61. Qf5+ {[%clk 0:00:12.4]} 61... Ke7 {[%clk
0:00:02.4]} 62. Qf1 {[%clk 0:00:13.3]} 1-0

[Event "*** Titled Tuesday Blitz"]
[Site "Chess.com"]
[Date "2021.02.02"]
[Round "10"]
[White "Iball95"]
[Black "TigrVShlyape"]
[Result "0-1"]
[WhiteElo "2633"]
[BlackElo "2837"]
[TimeControl "180+1"]
[EndTime "11:57:48 PST"]
[Termination "TigrVShlyape won by checkmate"]

1. e4 {[%clk 0:03:00.9]} 1... e5 {[%clk 0:02:54.6]} 2. Nf3 {[%clk 0:03:01.1]}
2... Nc6 {[%clk 0:02:52.2]} 3. Bc4 {[%clk 0:03:01.4]} 3... Nf6 {[%clk
0:02:51.6]} 4. d4 {[%clk 0:03:00.2]} 4... exd4 {[%clk 0:02:42.6]} 5. O-O {[%clk
0:02:57.8]} 5... Nxe4 {[%clk 0:02:41.9]} 6. Nc3 {[%clk 0:02:57.7]} 6... Nxc3
{[%clk 0:02:15.8]} 7. bxc3 {[%clk 0:02:56.2]} 7... Be7 {[%clk 0:02:15.1]} 8.
cxd4 {[%clk 0:02:55.2]} 8... d5 {[%clk 0:02:14]} 9. Bd3 {[%clk 0:02:55.5]} 9...
O-O {[%clk 0:02:13.6]} 10. Rb1 {[%clk 0:02:55]} 10... b6 {[%clk 0:02:06.8]} 11.
h3 {[%clk 0:02:40.9]} 11... h6 {[%clk 0:01:57.5]} 12. c3 {[%clk 0:02:38.3]}
12... Bd6 {[%clk 0:01:57.4]} 13. Re1 {[%clk 0:02:33.6]} 13... Qf6 {[%clk
0:01:55.2]} 14. Qa4 {[%clk 0:02:23.5]} 14... Ne7 {[%clk 0:01:46.7]} 15. Ba3
{[%clk 0:02:19.3]} 15... Bf5 {[%clk 0:01:42.8]} 16. Rbd1 {[%clk 0:01:51.1]}
16... Bxd3 {[%clk 0:01:39.6]} 17. Rxd3 {[%clk 0:01:51.4]} 17... Ng6 {[%clk
0:01:25.8]} 18. Ne5 {[%clk 0:01:36.5]} 18... Bxa3 {[%clk 0:01:22.6]} 19. Nd7
{[%clk 0:01:26.4]} 19... Qd6 {[%clk 0:01:12]} 20. Nxf8 {[%clk 0:01:22.6]} 20...
Nxf8 {[%clk 0:01:09.3]} 21. g3 {[%clk 0:01:16.6]} 21... a6 {[%clk 0:01:05]} 22.
Rde3 {[%clk 0:01:05.1]} 22... b5 {[%clk 0:01:03.8]} 23. Qb3 {[%clk 0:01:03.1]}
23... Ne6 {[%clk 0:00:59.2]} 24. f4 {[%clk 0:01:01.2]} 24... Rf8 {[%clk
0:00:56.7]} 25. h4 {[%clk 0:00:58.5]} 25... g6 {[%clk 0:00:52.5]} 26. Qc2 {[%clk
0:00:53.9]} 26... Ng7 {[%clk 0:00:50.8]} 27. Kg2 {[%clk 0:00:52.1]} 27... Qd7
{[%clk 0:00:49.7]} 28. R1e2 {[%clk 0:00:45.2]} 28... Bd6 {[%clk 0:00:48.3]} 29.
Re1 {[%clk 0:00:42.3]} 29... c6 {[%clk 0:00:48.5]} 30. a4 {[%clk 0:00:41.7]}
30... h5 {[%clk 0:00:48.5]} 31. axb5 {[%clk 0:00:40.8]} 31... cxb5 {[%clk
0:00:47.8]} 32. R3e2 {[%clk 0:00:41.7]} 32... Rc8 {[%clk 0:00:46.5]} 33. Qa2
{[%clk 0:00:39.6]} 33... Qc6 {[%clk 0:00:46.3]} 34. Rb1 {[%clk 0:00:34]} 34...
Nf5 {[%clk 0:00:46.1]} 35. Ra1 {[%clk 0:00:32.8]} 35... Qxc3 {[%clk 0:00:45.3]}
36. Qxa6 {[%clk 0:00:33]} 36... Qxg3+ {[%clk 0:00:45.2]} 37. Kh1 {[%clk
0:00:32.4]} 37... Qf3+ {[%clk 0:00:44.3]} 38. Rg2 {[%clk 0:00:32.2]} 38... Rc2
{[%clk 0:00:43.9]} 39. Qc8+ {[%clk 0:00:30.8]} 39... Kg7 {[%clk 0:00:42.9]} 40.
Qxc2 {[%clk 0:00:30.1]} 40... Nxh4 {[%clk 0:00:35.6]} 41. Qf2 {[%clk 0:00:28.9]}
41... Qxg2+ {[%clk 0:00:33]} 42. Qxg2 {[%clk 0:00:29.1]} 42... Nxg2 {[%clk
0:00:33.5]} 43. Kxg2 {[%clk 0:00:30]} 43... Bxf4 {[%clk 0:00:33.9]} 44. Rb1
{[%clk 0:00:29.2]} 44... Kf6 {[%clk 0:00:31.2]} 45. Rxb5 {[%clk 0:00:30.1]}
45... Ke6 {[%clk 0:00:31.4]} 46. Kf3 {[%clk 0:00:29.7]} 46... g5 {[%clk
0:00:30.6]} 47. Rb6+ {[%clk 0:00:29.1]} 47... Kf5 {[%clk 0:00:30.2]} 48. Rb7
{[%clk 0:00:21.8]} 48... g4+ {[%clk 0:00:29.9]} 49. Ke2 {[%clk 0:00:22.7]} 49...
Ke6 {[%clk 0:00:24.2]} 50. Rb6+ {[%clk 0:00:21.8]} 50... Bd6 {[%clk 0:00:24.4]}
51. Ra6 {[%clk 0:00:21.2]} 51... h4 {[%clk 0:00:24.3]} 52. Ra8 {[%clk
0:00:20.9]} 52... h3 {[%clk 0:00:24.5]} 53. Re8+ {[%clk 0:00:18.7]} 53... Kf5
{[%clk 0:00:19.8]} 54. Rd8 {[%clk 0:00:19]} 54... h2 {[%clk 0:00:19.7]} 55. Rh8
{[%clk 0:00:18.7]} 55... Ke4 {[%clk 0:00:18.7]} 56. Kf2 {[%clk 0:00:11.5]} 56...
f5 {[%clk 0:00:17.2]} 57. Rh6 {[%clk 0:00:07.9]} 57... Bf4 {[%clk 0:00:16.1]}
58. Rh5 {[%clk 0:00:08.2]} 58... Kxd4 {[%clk 0:00:16.2]} 59. Rxf5 {[%clk
0:00:07]} 59... h1=Q {[%clk 0:00:15.6]} 60. Rxf4+ {[%clk 0:00:07.9]} 60... Qe4
{[%clk 0:00:15.3]} 61. Rxg4 {[%clk 0:00:08.8]} 61... Qxg4 {[%clk 0:00:15.1]} 62.
Ke1 {[%clk 0:00:09.7]} 62... Ke3 {[%clk 0:00:15.1]} 63. Kf1 {[%clk 0:00:10]}
63... Qe2+ {[%clk 0:00:15.1]} 64. Kg1 {[%clk 0:00:09.8]} 64... d4 {[%clk
0:00:15.4]} 65. Kh1 {[%clk 0:00:10.7]} 65... d3 {[%clk 0:00:15.7]} 66. Kg1
{[%clk 0:00:11.6]} 66... d2 {[%clk 0:00:16.1]} 67. Kh1 {[%clk 0:00:12.5]} 67...
Kf3 {[%clk 0:00:16.4]} 68. Kg1 {[%clk 0:00:13.4]} 68... Kg3 {[%clk 0:00:16.7]}
69. Kh1 {[%clk 0:00:14.3]} 69... d1=N {[%clk 0:00:15.4]} 70. Kg1 {[%clk
0:00:15.2]} 70... Ne3 {[%clk 0:00:15]} 71. Kh1 {[%clk 0:00:16.1]} 71... Ng4
{[%clk 0:00:14.8]} 72. Kg1 {[%clk 0:00:16.5]} 72... Nh2 {[%clk 0:00:13.8]} 73.
Kh1 {[%clk 0:00:17.4]} 73... Qd2 {[%clk 0:00:13.3]} 74. Kg1 {[%clk 0:00:18.3]}
74... Nf3+ {[%clk 0:00:13]} 75. Kh1 {[%clk 0:00:19.2]} 75... Qg2# {[%clk
0:00:11.7]} 0-1